Workbook

Sheet Tabelle1
A1: Pos. | C1: Fonds | D1: Anteil | E1: WKN | F1: ISIN | G1: Art | H1: TER | I1: Domizil | J1: KAG | K1: Bank | L1: Kaufdatum | M1: Einstandskurs | N1: Stück | O1: Investiertes Kapital | P1: Bewertungskurs (am) | Q1: am | R1: Wert ges. | S1: Gewinn in € | T1: Gewinn in % | U1: Rendite per anno
A3: 1 | B3: World | C3: MSCI World Index UCITS ETF | E3: DBX1MW | F3: LU0274208692 | G3: TH | H3: 0.45 | I3: Luxemburg | J3: db x-trackers | K3: comdirect | L3: 2008-12-29 | M3: 15.1 | N3: 296 | O3: =M3*N3 -> 4469.6 | P3: 29.12 | Q3: 2013-08-15 | R3: =P3*N3 -> 8619.52 | S3: =R3-O3 -> 4149.92 | T3: =(R3-O3)/O3 -> 0.9284768212 | U3: ='Pos. 1'!G5 -> 0.1523902237
A5: 2 | B5: Europa | C5: iShares STOXX Europe 600 (DE) (EXSA) | E5: 263530 | F5: DE0002635307 | G5: AUS | H5: 0.2 | I5: Deutschland | J5: iShares | K5: CC | L5: 2010-05-18 | M5: 25.9795 | N5: 200 | O5: =M5*N5 -> 5195.9 | P5: 31.32 | Q5: 2013-08-14 | R5: 6264 | S5: 1068.1 | T5: 0.205565927 | U5: ='Pos. 2'!G6 -> 0.1272220075

Sheet Pos. 1
E1: WKN | F1: ISIN
A2: =Tabelle1!C3 -> MSCI World Index UCITS ETF | E2: =Tabelle1!E3 -> DBX1MW | F2: =Tabelle1!F3 -> LU0274208692 | H2: =Tabelle1!G3 -> TH
A4: Datum | G4: Rendite per anno
A5: =Tabelle1!L3 -> 2008-12-29 | B5: =Tabelle1!O3*-1 -> -4469.6 | G5: =XIRR(B5:B6,A5:A6) -> 0.1523902237
A6: =Tabelle1!Q3 -> 2013-08-15 | B6: =Tabelle1!R3 -> 8619.52

Sheet Pos. 2
E1: WKN | F1: ISIN
A2: =Tabelle1!C5 -> iShares STOXX Europe 600 (DE) (EXSA) | E2: =Tabelle1!E5 -> 263530 | F2: =Tabelle1!F5 -> DE0002635307 | H2: =Tabelle1!G5 -> AUS
A3: MSCI World Index UCITS ETF
A5: Datum | G5: Rendite per anno
A6: 2008-12-29 | B6: =Tabelle1!O3*-1 -> -4469.6 | G6: =XIRR(B6:B18,A6:A18) -> 0.1272220075
A7: =Tabelle1!L5 -> 2010-05-18 | B7: =Tabelle1!O5*-1 -> -5195.9
A8: 2010-06-15 | B8: 66.22 | G8: iShares alleine
A9: 2010-12-15 | B9: 45.85 | G9: =XIRR(B7:B17,A7:A17) -> 0.08599056304
A10: 2011-06-15 | B10: 73.68
A11: 2011-09-15 | B11: 37.86
A12: 2012-03-15 | B12: 33.36
A13: 2012-06-15 | B13: 66.71
A14: 2012-09-17 | B14: 36.24
A15: 2013-03-16 | B15: 32.5
A16: 2013-06-17 | B16: 66.03
A17: =Tabelle1!Q5 -> 2013-08-14 | B17: =Tabelle1!R5 -> 6264
A18: 2013-08-15 | B18: =Tabelle1!R3 -> 8619.52
